Workbook

Sheet nsscaps
A1: Massachusetts Department of Elementary and Secondary Education
A2: Office of School Finance
A3: Projected FY17 FTE Remaining under the Net School Spending (NSS) Caps (Q1)(b)
H5: 9% Cap | J5: 18% Cap | L5: NEAR CAP
E6: Average | F6: Unadjusted
C7: Operating | E7: Rate PP | F7: Local Tuition | G7: Projected | H7: Estimated | I7: Estimated FTE | J7: Estimated | K7: Estimated FTE
C8: District | E8: (Excludes | F8: (Excludes | G8: Budgeted | H8: FY17 | I8: Remaining | J8: FY17 | K8: Remaining | L8: 0=No
A9: LEA | B9: District | C9: 1 = yes | D9: FTE | E9: Facilities) | F9: Facilities) | G9: FY17 NSS | H9: Tuition | I9: Under NSS Cap | J9: Tuition | K9: Under NSS Cap | L9: 1=Yes
A10: 1 | B10: ABINGTON | C10: =VLOOKUP(A10,distinfo,3) -> 1 | D10: =VLOOKUP(A10,distdata,2) -> 47.67324724 | E10: =IF(D10=0,(VLOOKUP(A10,distinfo,9)+VLOOKUP(A10,distinfo,10)),(VLOOKUP(A10,distdata,3)/VLOOKUP(A10,distdata,2))) -> 11500.5172 | F10: =VLOOKUP(A10,distdata,3) -> 548267 | G10: =IF(OR($A10=352,$A10=353),0,VLOOKUP($A10,distinfo,12)) -> 25813706.75 | H10: =G10*0.09 -> 2323233.607 | I10: =IF(AND(C10=1,G10>0,H10>0),(H10-F10)/E10,"") -> 154.3379811 | L10: =IFERROR(IF(AND(C10=1,E10>1,G10>0, OR((F10/G10)>0.085, I10<10)), 1, 0),0) -> 0
A11: 2 | B11: ACTON | C11: =VLOOKUP(A11,distinfo,3) -> 0 | D11: =VLOOKUP(A11,distdata,2) -> 0 | E11: 0 | F11: =VLOOKUP(A11,distdata,3) -> 0 | G11: 236775 | H11: 21309.75 | I11: =IF(AND(C11=1,G11>0,H11>0),(H11-F11)/E11,"") ->  | L11: 0
A12: 3 | B12: ACUSHNET | C12: 1 | D12: 0 | E12: 10815.70362 | F12: 0 | G12: 13984274 | H12: 1258584.66 | I12: 116.3664154 | L12: 0
A13: 4 | B13: ADAMS | C13: 0 | D13: 0 | E13: 0 | F13: 0 | G13: 0 | H13: 0 | L13: 0
A14: 5 | B14: AGAWAM | C14: 1 | D14: 18.80104367 | E14: 13424.20157 | F14: 252389 | G14: 56065428.35 | H14: 5045888.551 | I14: 357.0789313 | L14: 0
A15: 6 | B15: ALFORD | C15: 0 | D15: 0 | E15: 0 | F15: 0 | G15: 0 | H15: 0 | L15: 0
A16: 7 | B16: AMESBURY | C16: 1 | D16: 54 | E16: 10333.66667 | F16: 558018 | G16: 30887108 | H16: 2779839.72 | I16: 215.0080694 | L16: 0
A17: 8 | B17: AMHERST | C17: 1 | D17: 97.52677887 | E17: 17805.69419 | F17: 1736532 | G17: 24764596.66 | H17: 2228813.699 | I17: 27.64743086 | L17: 0
A18: 9 | B18: ANDOVER | C18: 1 | D18: 12.43114398 | E18: 15041.33492 | F18: 186981 | G18: 90870774.18 | H18: 8178369.676 | I18: 531.2951756 | L18: 0
A19: 10 | B19: ARLINGTON | C19: 1 | D19: 7.944073793 | E19: 13448.8932 | F19: 106839 | G19: 69217762 | H19: 6229598.58 | I19: 455.2612241 | L19: 0
A20: 11 | B20: ASHBURNHAM | C20: 0 | D20: 0 | E20: 0 | F20: 0 | G20: 0 | H20: 0 | L20: 0
A21: 12 | B21: ASHBY | C21: 0 | D21: 0 | E21: 0 | F21: 0 | G21: 0 | H21: 0 | L21: 0
A22: 13 | B22: ASHFIELD | C22: 0 | D22: 0 | E22: 14750.7125 | F22: 0 | G22: 517052 | H22: 46534.68 | L22: 0
A23: 14 | B23: ASHLAND | C23: 1 | D23: 68.69698022 | E23: 12284.7758 | F23: 843927 | G23: 34091382.49 | H23: 3068224.424 | I23: 181.0612957 | L23: 0
A24: 15 | B24: ATHOL | C24: 0 | D24: 0 | E24: 13170.92 | F24: 0 | G24: 22469 | H24: 2022.21 | L24: 0
A25: 16 | B25: ATTLEBORO | C25: 1 | D25: 317.0885184 | E25: 9266.475542 | F25: 2938293 | G25: 69977948 | H25: 6298015.32 | I25: 362.5674405 | L25: 0
A26: 17 | B26: AUBURN | C26: 1 | D26: 13.97674419 | E26: 13220.38935 | F26: 184778 | G26: 30291953.84 | H26: 2726275.845 | I26: 192.2407713 | L26: 0
A27: 18 | B27: AVON | C27: 1 | D27: 9.322709163 | E27: 17583.94444 | F27: 163930 | G27: 9826078.26 | H27: 884347.0434 | I27: 40.97016148 | L27: 0
A28: 19 | B28: AYER | C28: 0 | D28: 0 | E28: 0 | F28: 0 | G28: 0 | H28: 0 | L28: 0
A29: 20 | B29: BARNSTABLE | C29: 1 | D29: 232.9378882 | E29: 12465.70072 | F29: 2903734 | G29: 74673368.82 | H29: 6720603.194 | I29: 306.1897025 | L29: 0
A30: 21 | B30: BARRE | C30: 0 | D30: 0 | E30: 0 | F30: 0 | G30: 0 | H30: 0 | L30: 0
A31: 22 | B31: BECKET | C31: 0 | D31: 0 | E31: 15468.8 | F31: 0 | G31: 104564 | H31: 9410.76 | L31: 0
A32: 23 | B32: BEDFORD | C32: 1 | D32: 2.005730659 | E32: 12883.08571 | F32: 25840 | G32: 42586512 | H32: 3832786.08 | I32: 295.4995538 | L32: 0
A33: 24 | B33: BELCHERTOWN | C33: 1 | D33: 49.40579965 | E33: 11149.88531 | F33: 550869 | G33: 28436039.63 | H33: 2559243.567 | I33: 180.1251323 | L33: 0
A34: 25 | B34: BELLINGHAM | C34: 1 | D34: 6.053811659 | E34: 10888.34667 | F34: 65916 | G34: 29773785 | H34: 2679640.65 | I34: 240.0478907 | L34: 0
A35: 26 | B35: BELMONT | C35: 1 | D35: 2.005730659 | E35: 17015.24571 | F35: 34128 | G35: 53175357.52 | H35: 4785782.177 | I35: 279.2586282 | L35: 0
A36: 27 | B36: BERKLEY | C36: 1 | D36: 0 | E36: 13233.88676 | F36: 0 | G36: 9802359 | H36: 882212.31 | I36: 66.66312976 | L36: 0
A37: 28 | B37: BERLIN | C37: 1 | D37: 0 | E37: 22576.81099 | F37: 0 | G37: 3391623.66 | H37: 305246.1294 | I37: 13.52033861 | L37: 0
A38: 29 | B38: BERNARDSTON | C38: 0 | D38: 0 | E38: 0 | F38: 0 | G38: 0 | H38: 0 | L38: 0
A39: 30 | B39: BEVERLY | C39: 1 | D39: 11.66640123 | E39: 13851.40086 | F39: 161596 | G39: 57004618.53 | H39: 5130415.668 | I39: 358.7232597 | L39: 0
A40: 31 | B40: BILLERICA | C40: 1 | D40: 205.6794582 | E40: 13404.01236 | F40: 2756930 | G40: 77841703.54 | H40: 7005753.319 | I40: 316.9814534 | L40: 0
A41: 32 | B41: BLACKSTONE | C41: 0 | D41: 0 | E41: 14657.78353 | F41: 0 | G41: 46444 | H41: 4179.96 | L41: 0
A42: 33 | B42: BLANDFORD | C42: 0 | D42: 0 | E42: 13170.92 | F42: 0 | G42: 0 | H42: 0 | L42: 0
A43: 34 | B43: BOLTON | C43: 0 | D43: 0 | E43: 13625.77286 | F43: 0 | G43: 178269 | H43: 16044.21 | L43: 0
A44: 35 | B44: BOSTON | C44: 1 | D44: 10136.67768 | E44: 14721.30739 | F44: 149225148 | G44: 1069580123 | H44: 96262211.04 | I44: -3597.706071 | J44: 192524422.1 | K44: 2941.265538 | L44: =IFERROR(IF(AND(C44=1,E44>1,G44>0, OR((F44/G44)>0.175, K44<10)), 1, 0),0) -> 0
A45: 36 | B45: BOURNE | C45: 1 | D45: 105.8448091 | E45: 13923.40364 | F45: 1473720 | G45: 28350730.86 | H45: 2551565.777 | I45: 77.41252104 | L45: =IFERROR(IF(AND(C45=1,E45>1,G45>0, OR((F45/G45)>0.085, I45<10)), 1, 0),0) -> 0
A46: 37 | B46: BOXBOROUGH | C46: 0 | D46: 0 | E46: 0 | F46: 0 | G46: 0 | H46: 0 | L46: 0
A47: 38 | B47: BOXFORD | C47: 1 | D47: 0 | E47: 15549.70097 | F47: 0 | G47: 11998676 | H47: 1079880.84 | I47: 69.44704866 | L47: 0
A48: 39 | B48: BOYLSTON | C48: 1 | D48: 0 | E48: 12648.20331 | F48: 0 | G48: 3693793 | H48: 332441.37 | I48: 26.28368329 | L48: 0
A49: 40 | B49: BRAINTREE | C49: 1 | D49: 21.73654166 | E49: 12814.78003 | F49: 278549 | G49: 71853730.81 | H49: 6466835.773 | I49: 482.9023018 | L49: 0
A50: 41 | B50: BREWSTER | C50: 1 | D50: 0 | E50: 19200.09992 | F50: 0 | G50: 9335303 | H50: 840177.27 | I50: 43.75900509 | L50: 0
A51: 42 | B51: BRIDGEWATER | C51: 0 | D51: 0 | E51: 15115.28 | F51: 0 | G51: 71236 | H51: 6411.24 | L51: 0
A52: 43 | B52: BRIMFIELD | C52: 1 | D52: 0 | E52: 13242.94563 | F52: 0 | G52: 3783697 | H52: 340532.73 | I52: 25.71427382 | L52: 0
A53: 44 | B53: BROCKTON | C53: 1 | D53: 402.8717816 | E53: 10679.34315 | F53: 4302406 | G53: 211214566.3 | H53: 19009310.97 | I53: 1377.135725 | L53: 0
A54: 45 | B54: BROOKFIELD | C54: 1 | D54: 0 | E54: 12570.32119 | F54: 0 | G54: 3259796 | H54: 293381.64 | I54: 23.33923179 | L54: 0
A55: 46 | B55: BROOKLINE | C55: 1 | D55: 2.993217817 | E55: 17433.4122 | F55: 52182 | G55: 116275985 | H55: 10464838.65 | I55: 597.2816182 | L55: 0
A56: 47 | B56: BUCKLAND | C56: 0 | D56: 0 | E56: 0 | F56: 0 | G56: 0 | H56: 0 | L56: 0
A57: 48 | B57: BURLINGTON | C57: 1 | D57: 2.299956435 | E57: 14237.66099 | F57: 32746 | G57: 64576948.72 | H57: 5811925.385 | I57: 405.907922 | L57: 0
A58: 49 | B58: CAMBRIDGE | C58: 1 | D58: 486.6463098 | E58: 25956.79808 | F58: 12631780 | G58: 190427232.2 | H58: 17138450.9 | I58: 173.6219885 | L58: 0
A59: 50 | B59: CANTON | C59: 1 | D59: 4.443432671 | E59: 13658.80942 | F59: 60692 | G59: 45962744 | H59: 4136646.96 | I59: 298.4121702 | L59: 0
A60: 51 | B60: CARLISLE | C60: 1 | D60: 0 | E60: 17422.21922 | F60: 0 | G60: 11224129 | H60: 1010171.61 | I60: 57.98179884 | L60: 0
A61: 52 | B61: CARVER | C61: 1 | D61: 30.8326525 | E61: 12378.56522 | F61: 381664 | G61: 22110574.16 | H61: 1989951.674 | I61: 129.925209 | L61: 0
A62: 53 | B62: CHARLEMONT | C62: 0 | D62: 0 | E62: 13170.92 | F62: 0 | G62: 146756 | H62: 13208.04 | L62: 0
A63: 54 | B63: CHARLTON | C63: 0 | D63: 0 | E63: 13170.92 | F63: 0 | G63: 88089 | H63: 7928.01 | L63: 0
A64: 55 | B64: CHATHAM | C64: 0 | D64: 0 | E64: 0 | F64: 0 | G64: 0 | H64: 0 | L64: 0
A65: 56 | B65: CHELMSFORD | C65: 1 | D65: 125.6463882 | E65: 10974.3067 | F65: 1378882 | G65: 66136812.99 | H65: 5952313.169 | I65: 416.7398719 | L65: 0
A66: 57 | B66: CHELSEA | C66: 1 | D66: 852.6584421 | E66: 11394.68223 | F66: 9715772 | G66: 86732759.91 | H66: 7805948.392 | I66: -167.6065703 | J66: 15611896.78 | K66: 517.4453015 | L66: =IFERROR(IF(AND(C66=1,E66>1,G66>0, OR((F66/G66)>0.175, K66<10)), 1, 0),0) -> 0
A67: 58 | B67: CHESHIRE | C67: 0 | D67: 0 | E67: 0 | F67: 0 | G67: 10129 | H67: 911.61 | L67: =IFERROR(IF(AND(C67=1,E67>1,G67>0, OR((F67/G67)>0.085, I67<10)), 1, 0),0) -> 0
A68: 59 | B68: CHESTER | C68: 0 | D68: 0 | E68: 13170.92 | F68: 0 | G68: 236827.5 | H68: 21314.475 | L68: =IFERROR(IF(AND(C68=1,E68>1,G68>0, OR((F68/G68)>0.085, I68<10)), 1, 0),0) -> 0
A69: 60 | B69: CHESTERFIELD | C69: 0 | D69: 0 | E69: 14575.18 | F69: 0 | G69: 387032 | H69: 34832.88 | L69: =IFERROR(IF(AND(C69=1,E69>1,G69>0, OR((F69/G69)>0.085, I69<10)), 1, 0),0) -> 0
A70: 61 | B70: CHICOPEE | C70: 1 | D70: 204.9885278 | E70: 10806.4145 | F70: 2215191 | G70: 93716723.22 | H70: 8434505.09 | I70: 575.5205937 | J70: 16869010.18 | K70: 1356.029715 | L70: =IFERROR(IF(AND(C70=1,E70>1,G70>0, OR((F70/G70)>0.175, K70<10)), 1, 0),0) -> 0
A71: 62 | B71: CHILMARK | C71: 0 | D71: 0 | E71: 0 | F71: 0 | G71: 0 | H71: 0 | L71: =IFERROR(IF(AND(C71=1,E71>1,G71>0, OR((F71/G71)>0.085, I71<10)), 1, 0),0) -> 0
A72: 63 | B72: CLARKSBURG | C72: 1 | D72: 3.084985836 | E72: 12463.9146 | F72: 38451 | G72: 2578721.732 | H72: 232084.9559 | I72: 15.53556504 | L72: 0
A73: 64 | B73: CLINTON | C73: 1 | D73: 50.93775136 | E73: 9585.444724 | F73: 488261 | G73: 25132107.32 | H73: 2261889.659 | I73: 185.0335284 | L73: 0
A74: 65 | B74: COHASSET | C74: 1 | D74: 3.563416661 | E74: =IF(D74=0,(VLOOKUP(A74,distinfo,9)+VLOOKUP(A74,distinfo,10)),(VLOOKUP(A74,distdata,3)/VLOOKUP(A74,distdata,2))) -> 14211.08021 | F74: 50640 | G74: =IF(OR($A74=352,$A74=353),0,VLOOKUP($A74,distinfo,12)) -> 21379747.48 | H74: =G74*0.09 -> 1924177.273 | I74: 131.8363731 | L74: 0
A75: 66 | B75: COLRAIN | C75: =VLOOKUP(A75,distinfo,3) -> 0 | D75: =VLOOKUP(A75,distdata,2) -> 0 | E75: 13170.92 | F75: =VLOOKUP(A75,distdata,3) -> 0 | G75: 557 | H75: 50.13 | I75: =IF(AND(C75=1,G75>0,H75>0),(H75-F75)/E75,"") ->  | L75: 0
A76: 67 | B76: CONCORD | C76: 1 | D76: 3.007518797 | E76: 14989.765 | F76: 45082 | G76: 37827889.13 | H76: 3404510.022 | I76: 224.1147891 | L76: 0
A77: 68 | B77: CONWAY | C77: 1 | D77: 3.416856492 | E77: 11996.992 | F77: 40992 | G77: 2067857.823 | H77: 186107.2041 | I77: 12.09596573 | L77: 0
A78: 69 | B78: CUMMINGTON | C78: 0 | D78: 0 | E78: 13170.92 | F78: 0 | G78: 0 | H78: 0 | L78: 0
A79: 70 | B79: DALTON | C79: 0 | D79: 0 | E79: 14750.7125 | F79: 0 | G79: 435957 | H79: 39236.13 | L79: 0
A80: 71 | B80: DANVERS | C80: 1 | D80: 2.666666667 | E80: 18846 | F80: 50256 | G80: 51622055 | H80: 4645984.95 | I80: 243.8569962 | L80: 0
A81: 72 | B81: DARTMOUTH | C81: 1 | D81: 11.26532129 | E81: 11090.14087 | F81: 124934 | G81: 43963779.81 | H81: 3956740.183 | I81: 345.5146537 | L81: 0
A82: 73 | B82: DEDHAM | C82: 1 | D82: 7.466577648 | E82: 13450.33893 | F82: 100428 | G82: 46901808 | H82: 4221162.72 | I82: 306.3666084 | L82: 0
A83: 74 | B83: DEERFIELD | C83: 1 | D83: 3.416856492 | E83: 12503.01267 | F83: 42721 | G83: 5114511 | H83: 460305.99 | I83: 33.39874966 | L83: 0
A84: 75 | B84: DENNIS | C84: 0 | D84: 0 | E84: 0 | F84: 0 | G84: 79442 | H84: 7149.78 | L84: 0
A85: 76 | B85: DIGHTON | C85: 0 | D85: 0 | E85: 0 | F85: 0 | G85: 525 | H85: 47.25 | L85: 0
A86: 77 | B86: DOUGLAS | C86: 1 | D86: 0 | E86: 9807.359189 | F86: 0 | G86: 15915608 | H86: 1432404.72 | I86: 146.0540694 | L86: 0
A87: 78 | B87: DOVER | C87: 1 | D87: 0 | E87: 19764.62267 | F87: 0 | G87: 11725121 | H87: 1055260.89 | I87: 53.39140078 | L87: 0
A88: 79 | B88: DRACUT | C88: 1 | D88: 210.3939811 | E88: 10177.64381 | F88: 2141315 | G88: 42221286.5 | H88: 3799915.785 | I88: 162.9651043 | L88: 0
A89: 80 | B89: DUDLEY | C89: 0 | D89: 0 | E89: 13170.92 | F89: 0 | G89: 32237 | H89: 2901.33 | L89: 0
A90: 81 | B90: DUNSTABLE | C90: 0 | D90: 0 | E90: 13170.92 | F90: 0 | G90: 13712 | H90: 1234.08 | L90: 0
A91: 82 | B91: DUXBURY | C91: 1 | D91: 14.67041494 | E91: 13524.83899 | F91: 198415 | G91: 37701273.07 | H91: 3393114.576 | I91: 236.2098046 | L91: 0
A92: 83 | B92: EAST BRIDGEWATER | C92: 1 | D92: 6.049178805 | E92: 8901.86945 | F92: 53849 | G92: 22303260.58 | H92: 2007293.453 | I92: 219.4420468 | L92: 0
A93: 84 | B93: EAST BROOKFIELD | C93: 0 | D93: 0 | E93: 14501.27158 | F93: 0 | G93: 163634 | H93: 14727.06 | L93: 0
A94: 85 | B94: EASTHAM | C94: 1 | D94: 0 | E94: 22351.19927 | F94: 0 | G94: 4659971 | H94: 419397.39 | I94: 18.76397705 | L94: 0
A95: 86 | B95: EASTHAMPTON | C95: 1 | D95: 101.3557414 | E95: 10022.36268 | F95: 1015824 | G95: 20942437.52 | H95: 1884819.376 | I95: 86.7056406 | L95: 0
A96: 87 | B96: EAST LONGMEADOW | C96: 1 | D96: 9.568277126 | E96: 11369.86299 | F96: 108790 | G96: 33385121.81 | H96: 3004660.963 | I96: 254.6970851 | L96: 0
A97: 88 | B97: EASTON | C97: 1 | D97: 9.322709163 | E97: 10997.98333 | F97: 102531 | G97: 45202171 | H97: 4068195.39 | I97: 360.5810511 | L97: 0
A98: 89 | B98: EDGARTOWN | C98: 1 | D98: 38.42696629 | E98: 23470.93947 | F98: 901917 | G98: 10422298.34 | H98: 938006.8507 | I98: 1.537639801 | L98: 1
A99: 90 | B99: EGREMONT | C99: 0 | D99: 0 | E99: 0 | F99: 0 | G99: 1973 | H99: 177.57 | L99: 0
A100: 91 | B100: ERVING | C100: 1 | D100: 10.13434952 | E100: 18416.17951 | F100: 186636 | G100: 4717637 | H100: 424587.33 | I100: 12.92077599 | L100: 0
A101: 92 | B101: ESSEX | C101: 0 | D101: 0 | E101: 0 | F101: 0 | G101: 0 | H101: 0 | L101: 0
A102: 93 | B102: EVERETT | C102: 1 | D102: 666.382136 | E102: 10904.66207 | F102: 7266672 | G102: 90949878.58 | H102: 8185489.072 | I102: 84.25910559 | J102: 16370978.14 | K102: 834.9003472 | L102: =IFERROR(IF(AND(C102=1,E102>1,G102>0, OR((F102/G102)>0.175, K102<10)), 1, 0),0) -> 0
A103: 94 | B103: FAIRHAVEN | C103: 1 | D103: 2.106299213 | E103: 14736.74766 | F103: 31040 | G103: 19775024 | H103: 1779752.16 | I103: 118.6633713 | L103: =IFERROR(IF(AND(C103=1,E103>1,G103>0, OR((F103/G103)>0.085, I103<10)), 1, 0),0) -> 0
A104: 95 | B104: FALL RIVER | C104: 1 | D104: 1405.3396 | E104: 10191.57718 | F104: 14322627 | G104: 134355408.1 | H104: 12091986.73 | I104: -218.8709592 | J104: 24183973.45 | K104: 967.5976818 | L104: =IFERROR(IF(AND(C104=1,E104>1,G104>0, OR((F104/G104)>0.175, K104<10)), 1, 0),0) -> 0
A105: 96 | B105: FALMOUTH | C105: 1 | D105: 64.76737466 | E105: 14342.37538 | F105: 928918 | G105: 53387085 | H105: 4804837.65 | I105: 270.2425189 | L105: =IFERROR(IF(AND(C105=1,E105>1,G105>0, OR((F105/G105)>0.085, I105<10)), 1, 0),0) -> 0
A106: 97 | B106: FITCHBURG | C106: 1 | D106: 200.3357312 | E106: 10935.84248 | F106: 2190840 | G106: 65736439.52 | H106: 5916279.557 | I106: 340.6632424 | L106: =IFERROR(IF(AND(C106=1,E106>1,G106>0, OR((F106/G106)>0.085, I106<10)), 1, 0),0) -> 0
A107: 98 | B107: FLORIDA | C107: 1 | D107: 3.084985836 | E107: 15588.4022 | F107: 48090 | G107: 1676468.953 | H107: 150882.2058 | I107: 6.594146371 | J107: 301764.4116 | K107: 16.27327858 | L107: =IFERROR(IF(AND(C107=1,E107>1,G107>0, OR((F107/G107)>0.175, K107<10)), 1, 0),0) -> 0
A108: 99 | B108: FOXBOROUGH | C108: 1 | D108: 112.9083665 | E108: 13072.95505 | F108: 1476046 | G108: 40527279.79 | H108: 3647455.181 | I108: 166.0993382 | L108: =IFERROR(IF(AND(C108=1,E108>1,G108>0, OR((F108/G108)>0.085, I108<10)), 1, 0),0) -> 0
A109: 100 | B109: FRAMINGHAM | C109: 1 | D109: 326.7049098 | E109: 13444.26076 | F109: 4392306 | G109: 149296851.2 | H109: 13436716.61 | I109: 672.7339467 | L109: =IFERROR(IF(AND(C109=1,E109>1,G109>0, OR((F109/G109)>0.085, I109<10)), 1, 0),0) -> 0
A110: 101 | B110: FRANKLIN | C110: 1 | D110: 433.8242778 | E110: 9946.183791 | F110: 4314896 | G110: 68895705.23 | H110: 6200613.471 | I110: 189.5920597 | L110: =IFERROR(IF(AND(C110=1,E110>1,G110>0, OR((F110/G110)>0.085, I110<10)), 1, 0),0) -> 0
A111: 102 | B111: FREETOWN | C111: 0 | D111: 0 | E111: 14258.08903 | F111: 0 | G111: 1872778 | H111: 168550.02 | L111: =IFERROR(IF(AND(C111=1,E111>1,G111>0, OR((F111/G111)>0.085, I111<10)), 1, 0),0) -> 0
A112: 103 | B112: GARDNER | C112: 1 | D112: 12.3943662 | E112: 9874.002273 | F112: 122382 | G112: 28037925 | H112: 2523413.25 | I112: 243.1669736 | J112: 5046826.5 | K112: 498.7283134 | L112: =IFERROR(IF(AND(C112=1,E112>1,G112>0, OR((F112/G112)>0.175, K112<10)), 1, 0),0) -> 0
A113: 104 | B113: GAY HEAD | C113: 0 | D113: 0 | E113: 0 | F113: 0 | G113: 0 | H113: 0 | L113: =IFERROR(IF(AND(C113=1,E113>1,G113>0, OR((F113/G113)>0.085, I113<10)), 1, 0),0) -> 0
A114: 105 | B114: GEORGETOWN | C114: 1 | D114: 2 | E114: 9468 | F114: 18936 | G114: 17237686.44 | H114: 1551391.78 | I114: 161.856335 | L114: 0
A115: 106 | B115: GILL | C115: 0 | D115: 0 | E115: 0 | F115: 0 | G115: 0 | H115: 0 | L115: 0
A116: 107 | B116: GLOUCESTER | C116: 1 | D116: 0.9956709957 | E116: 10540.63043 | F116: 10495 | G116: 50568684 | H116: 4551181.56 | I116: 430.77941 | L116: 0
A117: 108 | B117: GOSHEN | C117: 0 | D117: 0 | E117: 13170.92 | F117: 0 | G117: 132063 | H117: 11885.67 | L117: 0
A118: 109 | B118: GOSNOLD | C118: 0 | D118: 0 | E118: 7165.536667 | F118: 0 | G118: 189956 | H118: 17096.04 | L118: 0
A119: 110 | B119: GRAFTON | C119: 1 | D119: 42.9536906 | E119: 10193.46636 | F119: 437847 | G119: 33924321.64 | H119: 3053188.948 | I119: 256.5704203 | L119: 0
A120: 111 | B120: GRANBY | C120: 1 | D120: 24.15376137 | E120: 14103.02084 | F120: 340641 | G120: 12082572.67 | H120: 1087431.54 | I120: 52.95252335 | L120: 0
A121: 112 | B121: GRANVILLE | C121: 0 | D121: 0 | E121: 0 | F121: 0 | G121: 0 | H121: 0 | L121: 0
A122: 113 | B122: GREAT BARRINGTON | C122: 0 | D122: 0 | E122: 0 | F122: 0 | G122: 0 | H122: 0 | L122: 0
A123: 114 | B123: GREENFIELD | C123: 1 | D123: 92.70566505 | E123: 11115.51273 | F123: 1030471 | G123: 26414257 | H123: 2377283.13 | I123: 121.1650927 | J123: 4754566.26 | K123: 335.0358504 | L123: =IFERROR(IF(AND(C123=1,E123>1,G123>0, OR((F123/G123)>0.175, K123<10)), 1, 0),0) -> 0
A124: 115 | B124: GROTON | C124: 0 | D124: 0 | E124: 0 | F124: 0 | G124: 0 | H124: 0 | L124: =IFERROR(IF(AND(C124=1,E124>1,G124>0, OR((F124/G124)>0.085, I124<10)), 1, 0),0) -> 0
A125: 116 | B125: GROVELAND | C125: 0 | D125: 0 | E125: 13170.92 | F125: 0 | G125: 10133 | H125: 911.97 | L125: 0
A126: 117 | B126: HADLEY | C126: 1 | D126: 42.34583041 | E126: 13969.16755 | F126: 591536 | G126: 9182235.747 | H126: 826401.2172 | I126: 16.81311477 | L126: 0
A127: 118 | B127: HALIFAX | C127: 1 | D127: 1.077654517 | E127: 10289.01176 | F127: 11088 | G127: 7698135.86 | H127: 692832.2274 | I127: 66.25944678 | L127: 0
A128: 119 | B128: HAMILTON | C128: 0 | D128: 0 | E128: 0 | F128: 0 | G128: 0 | H128: 0 | L128: 0
A129: 120 | B129: HAMPDEN | C129: 0 | D129: 0 | E129: 0 | F129: 0 | G129: 0 | H129: 0 | L129: 0
A130: 121 | B130: HANCOCK | C130: 1 | D130: 0 | E130: 13609.40811 | F130: 0 | G130: 1019973 | H130: 91797.57 | I130: 6.74515521 | L130: 1
A131: 122 | B131: HANOVER | C131: 1 | D131: 37.28643216 | E131: 11320.04259 | F131: 422084 | G131: 31466234.15 | H131: 2831961.074 | I131: 212.8858664 | L131: 0
A132: 123 | B132: HANSON | C132: 0 | D132: 0 | E132: 13170.92 | F132: 0 | G132: 493846 | H132: 44446.14 | L132: 0
A133: 124 | B133: HARDWICK | C133: 0 | D133: 0 | E133: 13170.92 | F133: 0 | G133: 232 | H133: 20.88 | L133: 0
A134: 125 | B134: HARVARD | C134: 1 | D134: 19.97412069 | E134: 14078.16666 | F134: 281199 | G134: 15741189 | H134: 1416707.01 | I134: 80.65737799 | L134: 0
A135: 126 | B135: HARWICH | C135: 0 | D135: 0 | E135: 0 | F135: 0 | G135: 0 | H135: 0 | L135: 0
A136: 127 | B136: HATFIELD | C136: 1 | D136: 9.45967036 | E136: 11232.52671 | F136: 106256 | G136: 5111804 | H136: 460062.36 | I136: 31.49837691 | L136: 0
A137: 128 | B137: HAVERHILL | C137: 1 | D137: 309.7885885 | E137: 9158.184341 | F137: 2837101 | G137: 91593141.39 | H137: 8243382.725 | I137: 590.3224399 | L137: 0
A138: 129 | B138: HAWLEY | C138: 0 | D138: 0 | E138: =IF(D138=0,(VLOOKUP(A138,distinfo,9)+VLOOKUP(A138,distinfo,10)),(VLOOKUP(A138,distdata,3)/VLOOKUP(A138,distdata,2))) -> 13170.92 | F138: 0 | G138: =IF(OR($A138=352,$A138=353),0,VLOOKUP($A138,distinfo,12)) -> 6239 | H138: =G138*0.09 -> 561.51 | L138: 0
A139: 130 | B139: HEATH | C139: =VLOOKUP(A139,distinfo,3) -> 0 | D139: =VLOOKUP(A139,distdata,2) -> 0 | E139: 0 | F139: =VLOOKUP(A139,distdata,3) -> 0 | G139: 0 | H139: 0 | I139: =IF(AND(C139=1,G139>0,H139>0),(H139-F139)/E139,"") ->  | L139: 0
A140: 131 | B140: HINGHAM | C140: 1 | D140: 13.50646524 | E140: 11242.39372 | F140: 151845 | G140: 50199041.33 | H140: 4517913.72 | I140: 388.3575711 | L140: 0
A141: 132 | B141: HINSDALE | C141: 0 | D141: 0 | E141: 14856.032 | F141: 0 | G141: 0 | H141: 0 | L141: 0
A142: 133 | B142: HOLBROOK | C142: 1 | D142: 23.79664248 | E142: 11776.15709 | F142: 280233 | G142: 16337852.5 | H142: 1470406.725 | I142: 101.0663934 | L142: 0
A143: 134 | B143: HOLDEN | C143: 0 | D143: 0 | E143: 13170.92 | F143: 0 | G143: 115446 | H143: 10390.14 | L143: 0
A144: 135 | B144: HOLLAND | C144: 1 | D144: 0 | E144: 14785.11772 | F144: 0 | G144: 2471851 | H144: 222466.59 | I144: 15.04665666 | L144: 0
A145: 136 | B145: HOLLISTON | C145: 1 | D145: 10.81916001 | E145: 11974.86679 | F145: 129558 | G145: 33139480.92 | H145: 2982553.283 | I145: 238.2486028 | L145: 0
A146: 137 | B146: HOLYOKE | C146: 1 | D146: 892.2218976 | E146: 12579.07481 | F146: 11223326 | G146: 82641922.69 | H146: 7437773.042 | I146: -300.9404916 | J146: 14875546.08 | K146: 290.3409145 | L146: =IFERROR(IF(AND(C146=1,E146>1,G146>0, OR((F146/G146)>0.175, K146<10)), 1, 0),0) -> 0
A147: 138 | B147: HOPEDALE | C147: 1 | D147: 0.976744186 | E147: 12677.83333 | F147: 12383 | G147: 13547313.49 | H147: 1219258.214 | I147: 95.19569966 | L147: =IFERROR(IF(AND(C147=1,E147>1,G147>0, OR((F147/G147)>0.085, I147<10)), 1, 0),0) -> 0
A148: 139 | B148: HOPKINTON | C148: 1 | D148: 21.56334606 | E148: 11963.77405 | F148: 257979 | G148: 45543268 | H148: 4098894.12 | I148: 321.0454414 | L148: 0
A149: 140 | B149: HUBBARDSTON | C149: 0 | D149: 0 | E149: 0 | F149: 0 | G149: 0 | H149: 0 | L149: 0
A150: 141 | B150: HUDSON | C150: 1 | D150: 82.04651163 | E150: 14206.03968 | F150: 1165556 | G150: 44812892.91 | H150: 4033160.362 | I150: 201.8581129 | L150: 0
A151: 142 | B151: HULL | C151: 1 | D151: 32.31490787 | E151: 15919.06132 | F151: 514423 | G151: 17617447.58 | H151: 1585570.282 | I151: 67.28708815 | L151: 0
A152: 143 | B152: HUNTINGTON | C152: 0 | D152: 0 | E152: 14269.90609 | F152: 0 | G152: 413997 | H152: 37259.73 | L152: 0
A153: 144 | B153: IPSWICH | C153: 1 | D153: 0 | E153: 14003.08009 | F153: 0 | G153: 27233493 | H153: 2451014.37 | I153: 175.0339464 | L153: 0
A154: 145 | B154: KINGSTON | C154: 1 | D154: 13.26230731 | E154: 11276.99702 | F154: 149559 | G154: 13825497.8 | H154: 1244294.802 | I154: 97.07689024 | L154: 0
A155: 146 | B155: LAKEVILLE | C155: 0 | D155: 0 | E155: 13170.92 | F155: 0 | G155: 896812 | H155: 80713.08 | L155: 0
A156: 147 | B156: LANCASTER | C156: 0 | D156: 0 | E156: 13170.92 | F156: 0 | G156: 13744 | H156: 1236.96 | L156: 0
A157: 148 | B157: LANESBOROUGH | C157: 1 | D157: 1.028328612 | E157: 19343.03857 | F157: 19891 | G157: 3223069.64 | H157: 290076.2676 | I157: 13.96808814 | L157: 0
A158: 149 | B158: LAWRENCE | C158: 1 | D158: 1598.538349 | E158: 11861.71355 | F158: 18961404 | G158: 186790218.6 | H158: 16811119.68 | I158: -181.2794007 | J158: 33622239.35 | K158: 1235.979548 | L158: =IFERROR(IF(AND(C158=1,E158>1,G158>0, OR((F158/G158)>0.175, K158<10)), 1, 0),0) -> 0
A159: 150 | B159: LEE | C159: 1 | D159: 1.028328612 | E159: 16480.1405 | F159: 16947 | G159: 11599890 | H159: 1043990.1 | I159: 62.32004516 | L159: 0
A160: 151 | B160: LEICESTER | C160: 1 | D160: 10.96521739 | E160: 10513.42585 | F160: 115282 | G160: 18997063 | H160: 1709735.67 | I160: 151.6588115 | L160: 0
A161: 152 | B161: LENOX | C161: 1 | D161: 2.056657224 | E161: 22705.29063 | F161: 46697 | G161: 12994603 | H161: 1169514.27 | I161: 49.45179026 | L161: 0
A162: 153 | B162: LEOMINSTER | C162: 1 | D162: 84.92116003 | E162: 9986.933759 | F162: 848102 | G162: 71553230.77 | H162: 6439790.769 | I162: 559.9004564 | L162: 0
A163: 154 | B163: LEVERETT | C163: 1 | D163: 1.138952164 | E163: 19028.016 | F163: 21672 | G163: 2364293.469 | H163: 212786.4122 | I163: 10.04384336 | L163: 0
A164: 155 | B164: LEXINGTON | C164: 1 | D164: 2.224170044 | E164: 19555.15951 | F164: 43494 | G164: 124095784.2 | H164: 11168620.57 | I164: 568.9100397 | L164: 0
A165: 156 | B165: LEYDEN | C165: 0 | D165: 0 | E165: 0 | F165: 0 | G165: 0 | H165: 0 | L165: 0
A166: 157 | B166: LINCOLN | C166: 1 | D166: 0 | E166: 19996.35667 | F166: 0 | G166: 13361422 | H166: 1202527.98 | I166: 60.13735402 | L166: 0
A167: 158 | B167: LITTLETON | C167: 1 | D167: 65.28260547 | E167: 11889.30795 | F167: 776165 | G167: 21693118.34 | H167: 1952380.651 | I167: 98.93053962 | L167: 0
A168: 159 | B168: LONGMEADOW | C168: 1 | D168: 8.457194453 | E168: 13744.51074 | F168: 116240 | G168: 39688730.51 | H168: 3571985.746 | I168: 251.4273379 | L168: 0
A169: 160 | B169: LOWELL | C169: 1 | D169: 1641.996337 | E169: 11455.50607 | F169: 18809899 | G169: 189812000.2 | H169: 17083080.01 | I169: -150.7413969 | J169: 34166160.03 | K169: 1340.513543 | L169: =IFERROR(IF(AND(C169=1,E169>1,G169>0, OR((F169/G169)>0.175, K169<10)), 1, 0),0) -> 0
A170: 161 | B170: LUDLOW | C170: 1 | D170: 31.04190666 | E170: 16448.98961 | F170: 510608 | G170: 36899028.42 | H170: 3320912.558 | I170: 170.8496768 | L170: =IFERROR(IF(AND(C170=1,E170>1,G170>0, OR((F170/G170)>0.085, I170<10)), 1, 0),0) -> 0
A171: 162 | B171: LUNENBURG | C171: 1 | D171: 42.20756116 | E171: 11881.35458 | F171: 501483 | G171: 19993763 | H171: 1799438.67 | I171: 109.2430717 | L171: =IFERROR(IF(AND(C171=1,E171>1,G171>0, OR((F171/G171)>0.085, I171<10)), 1, 0),0) -> 0
A172: 163 | B172: LYNN | C172: 1 | D172: 1421.840062 | E172: 11342.83555 | F172: 16127698 | G172: 193710365 | H172: 17433932.85 | I172: 115.1594629 | J172: 34867865.7 | K172: 1652.158987 | L172: =IFERROR(IF(AND(C172=1,E172>1,G172>0, OR((F172/G172)>0.175, K172<10)), 1, 0),0) -> 0
A173: 164 | B173: LYNNFIELD | C173: 1 | D173: 2.329797493 | E173: 17379.19288 | F173: 40490 | G173: 30032988 | H173: 2702968.92 | I173: 153.1992273 | L173: =IFERROR(IF(AND(C173=1,E173>1,G173>0, OR((F173/G173)>0.085, I173<10)), 1, 0),0) -> 0
A174: 165 | B174: MALDEN | C174: 1 | D174: 902.7219371 | E174: 10562.96697 | F174: 9535422 | G174: 89040328.99 | H174: 8013629.609 | I174: -144.06865 | J174: 16027259.22 | K174: 614.5846371 | L174: =IFERROR(IF(AND(C174=1,E174>1,G174>0, OR((F174/G174)>0.175, K174<10)), 1, 0),0) -> 0
A175: 166 | B175: MANCHESTER | C175: 0 | D175: 0 | E175: 0 | F175: 0 | G175: 0 | H175: 0 | L175: 0
A176: 167 | B176: MANSFIELD | C176: 1 | D176: 118.0607614 | E176: 11653.38071 | F176: 1375807 | G176: 52979836 | H176: 4768185.24 | I176: 291.106789 | L176: 0
A177: 168 | B177: MARBLEHEAD | C177: 1 | D177: 188.7580486 | E177: 11592.55998 | F177: 2188189 | G177: 45382858.43 | H177: 4084457.259 | I177: 163.5763164 | L177: 0
A178: 169 | B178: MARION | C178: 1 | D178: 0 | E178: 14474.92672 | F178: 0 | G178: 6731099.01 | H178: 605798.9109 | I178: 41.85160469 | L178: 0
A179: 170 | B179: MARLBOROUGH | C179: 1 | D179: 473.776987 | E179: 11924.13763 | F179: 5649382 | G179: 77637649.72 | H179: 6987388.475 | I179: 112.2099154 | L179: 0
A180: 171 | B180: MARSHFIELD | C180: 1 | D180: 27.59490532 | E180: 10968.58266 | F180: 302677 | G180: 48910840 | H180: 4401975.6 | I180: 373.7309302 | L180: 0
A181: 172 | B181: MASHPEE | C181: 1 | D181: 43.90065065 | E181: 15928.30607 | F181: 699263 | G181: 27842798.94 | H181: 2505851.904 | I181: 113.420027 | L181: 0
A182: 173 | B182: MATTAPOISETT | C182: 1 | D182: 0 | E182: 14583.38561 | F182: 0 | G182: 7905895.5 | H182: 711530.595 | I182: 48.79049447 | L182: 0
A183: 174 | B183: MAYNARD | C183: 1 | D183: 28.48848431 | E183: 12244.49136 | F183: 348827 | G183: 20030947.86 | H183: 1802785.308 | I183: 118.7438714 | L183: 0
A184: 175 | B184: MEDFIELD | C184: 1 | D184: 0.9850746269 | E184: 11642.77273 | F184: 11469 | G184: 35051555.62 | H184: 3154640.006 | I184: 269.9675653 | L184: 0
A185: 176 | B185: MEDFORD | C185: 1 | D185: 359.2611161 | E185: 13722.68464 | F185: 4930027 | G185: 73556673.06 | H185: 6620100.575 | I185: 123.1591062 | L185: 0
A186: 177 | B186: MEDWAY | C186: 1 | D186: 14.01821435 | E186: 12182.93541 | F186: 170783 | G186: 29909086 | H186: 2691817.74 | I186: 206.9316347 | L186: 0
A187: 178 | B187: MELROSE | C187: 1 | D187: 261.8186414 | E187: 9903.691298 | F187: 2592971 | G187: 40927669.7 | H187: 3683490.273 | I187: 110.1124056 | L187: 0
A188: 179 | B188: MENDON | C188: 0 | D188: 0 | E188: 13376.68677 | F188: 0 | G188: 5699 | H188: 512.91 | L188: 0
A189: 180 | B189: MERRIMAC | C189: 0 | D189: 0 | E189: 13170.92 | F189: 0 | G189: 1254 | H189: 112.86 | L189: 0
A190: 181 | B190: METHUEN | C190: 1 | D190: 78.95164192 | E190: 10407.43397 | F190: 821684 | G190: 76096299 | H190: 6848666.91 | I190: 579.1036415 | J190: 13697333.82 | K190: 1237.158925 | L190: =IFERROR(IF(AND(C190=1,E190>1,G190>0, OR((F190/G190)>0.175, K190<10)), 1, 0),0) -> 0
A191: 182 | B191: MIDDLEBOROUGH | C191: 1 | D191: 24.78605388 | E191: 11504.85678 | F191: 285160 | G191: 38503500.35 | H191: 3465315.032 | I191: 276.4184808 | L191: =IFERROR(IF(AND(C191=1,E191>1,G191>0, OR((F191/G191)>0.085, I191<10)), 1, 0),0) -> 0
A192: 183 | B192: MIDDLEFIELD | C192: 0 | D192: 0 | E192: 13170.92 | F192: 0 | G192: 0 | H192: 0 | L192: 0
A193: 184 | B193: MIDDLETON | C193: 1 | D193: 0 | E193: 13166.64207 | F193: 0 | G193: 10669947 | H193: 960295.23 | I193: 72.93395118 | L193: 0
A194: 185 | B194: MILFORD | C194: 1 | D194: 4.9731611 | E194: 9496.776607 | F194: 47229 | G194: 53342658 | H194: 4800839.22 | I194: 500.549862 | L194: 0
A195: 186 | B195: MILLBURY | C195: 1 | D195: 2 | E195: 11713 | F195: 23426 | G195: 24433868 | H195: 2199048.12 | I195: 185.7442261 | L195: 0
A196: 187 | B196: MILLIS | C196: 1 | D196: 0 | E196: 12417.76478 | F196: 0 | G196: 16433033 | H196: 1478972.97 | I196: 119.1013839 | L196: 0
A197: 188 | B197: MILLVILLE | C197: 0 | D197: 0 | E197: 13170.92 | F197: 0 | G197: 206588.2 | H197: 18592.938 | L197: 0
A198: 189 | B198: MILTON | C198: 1 | D198: 7.226951727 | E198: 12672.83959 | F198: 91586 | G198: 49912175.36 | H198: 4492095.782 | I198: 347.2394446 | L198: 0
A199: 190 | B199: MONROE | C199: 0 | D199: 0 | E199: 7133.075556 | F199: 0 | G199: 148640 | H199: 13377.6 | L199: 0
A200: 191 | B200: MONSON | C200: 1 | D200: 8.079404467 | E200: 11915.60596 | F200: 96271 | G200: 13517194 | H200: 1216547.46 | I200: 94.01758198 | L200: 0
A201: 192 | B201: MONTAGUE | C201: 0 | D201: 0 | E201: 0 | F201: 0 | G201: 119914 | H201: 10792.26 | L201: 0
... 249 more rows
